[Event "FIDE World Cadets GU12 2022"]
[Site "Batumi"]
[Date "2022.09.23"]
[Round "7.10"]
[White "Shreya G Hipparagi"]
[Black "Urangoo, Gurvanbaatar"]
[Result "1/2-1/2"]
[ECO "B73"]
[WhiteElo "1574"]
[BlackElo "1391"]
[Annotator "NA RC COMBH"]
[PlyCount "134"]
[EventDate "2022.09.16"]
[EventType "swiss"]
[EventCountry "GEO"]
[SourceTitle "playchess.com"]
[Source "ChessBase"]
[SourceQuality "1"]
[TimeControl "5400+30"]

1. e4 {[%emt 0:01:00]} c5 {[%emt 0:01:00]} 2. Nf3 {[%emt 0:00:30]} d6 {[%emt 0:00:30]} 3. d4 {[%emt 0:00:30]} cxd4 {[%emt 0:00:30]} 4. Nxd4 {[%emt 0:00:30]} Nf6 {[%emt 0:00:30]} 5. Nc3 {[%emt 0:00:30]} g6 {[%emt 0:00:30]} 6. Be2 {[%emt 0:00:30]} Bg7 {[%emt 0:00:30]} 7. Be3 {[%emt 0:00:30]} O-O {[%emt 0:00:00]} 8. O-O {[%emt 0:00:00]} Nc6 {[%emt 0:00:00]} 9. Kh1 {[%emt 0:00:00]} d5 {[%emt 0:00:30]} 10. exd5 {[%emt 0:00:00]} Nxd5 {[%emt 0:00:30]} 11. Nxd5 {[%emt 0:00:00]} Nxd4 {[%emt 0:01:30]} 12. Bxd4 {[%emt 0:00:30]} Qxd5 {[%emt 0:01:30]} 13. Bxg7 {[%emt 0:00:30]} Qxd1 {[%emt 0:00:00]} 14. Raxd1 {[%emt 0:00:30]} Kxg7 {[%emt 0:00:00]} 15. Bf3 {[%emt 0:01:30]} Bf5 {[%emt 0:01:30]} 16. c4 {[%emt 0:00:30]} Rac8 {[%emt 0:06:30]} 17. b3 {[%emt 0:01:30]} b6 {[%emt 0:00:30]} 18. Rfe1 {[%emt 0:00:30]} Kf6 {[%emt 0:01:30]} 19. Be4 {[%emt 0:04:30]} Be6 {[%emt 0:02:30]} 20. Kg1 {[%emt 0:01:30]} Rfd8 {[%emt 0:00:30]} 21. f3 {[%emt 0:02:30]} Rxd1 {[%emt 0:05:30]} 22. Rxd1 {[%emt 0:00:00]} Rc5 {[%emt 0:02:30]} 23. Kf2 {[%emt 0:02:00]} Ra5 {[%emt 0:05:30]} 24. Rd2 {[%emt 0:00:30]} Ra3 {[%emt 0:00:30]} 25. Bc6 {[%emt 0:01:30]} Ke5 {[%emt 0:04:30]} 26. Be4 {[%emt 0:01:30]} f5 {[%emt 0:01:30]} 27. Bc6 {[%emt 0:06:30]} g5 {[%emt 0:06:30]} 28. Ke2 {[%emt 0:02:30]} Ra5 {[%emt 0:00:30]} 29. Kd3 {[%emt 0:02:30]} Rc5 {[%emt 0:01:30]} 30. Bb5 {[%emt 0:00:30]} Bc8 {[%emt 0:02:30]} 31. Kc3 {[%emt 0:01:30]} Ke6 {[%emt 0:03:30]} 32. b4 {[%emt 0:01:30]} Rc7 {[%emt 0:00:30]} 33. Ba4 {[%emt 0:01:30]} Kf6 {[%emt 0:02:30]} 34. Bb3 {[%emt 0:00:30]} Bb7 {[%emt 0:00:30]} 35. a4 {[%emt 0:01:30]} h5 {[%emt 0:00:30]} 36. Rd8 {[%emt 0:00:30]} g4 {[%emt 0:04:30]} 37. Bd1 {[%emt 0:02:30]} e5 {[%emt 0:04:30]} 38. Rf8+ {[%emt 0:00:30]} Kg5 {[%emt 0:00:00]} 39. Bc2 {[%emt 0:01:30]} Bc8 {[%emt 0:03:00]} 40. Re8 {[%emt 0:01:30]} gxf3 {[%emt 0:03:30]} 41. gxf3 {[%emt 0:00:30]} Kf4 {[%emt 0:00:30]} 42. a5 {[%emt 0:02:30]} Ba6 {[%emt 0:02:30]} 43. Bd3 {[%emt 0:00:30]} Bxc4 {[%emt 0:00:30]} 44. Bxc4 {[%emt 0:01:30]} b5 {[%emt 0:00:00]} 45. Kb3 {[%emt 0:00:30]} bxc4+ {[%emt 0:03:00]} 46. Kc3 {[%emt 0:00:00]} e4 {[%emt 0:02:30]} 47. fxe4 {[%emt 0:01:00]} fxe4 {[%emt 0:00:30]} 48. Rf8+ {[%emt 0:00:30]} Kg4 {[%emt 0:03:30]} 49. Re8 {[%emt 0:00:30]} Kf3 {[%emt 0:00:00]} 50. Rf8+ {[%emt 0:00:30]} Ke2 {[%emt 0:01:00]} 51. Rf5 {[%emt 0:00:30]} e3 {[%emt 0:05:30]} 52. Rxh5 {[%emt 0:00:00]} Ke1 {[%emt 0:03:15]} 53. Re5 {[%emt 0:01:00]} e2 {[%emt 0:00:30]} 54. h4 {[%emt 0:00:00]} Rf7 {[%emt 0:06:15]} 55. Kxc4 {[%emt 0:02:00]} Kf2 {[%emt 0:00:30]} 56. b5 {[%emt 0:00:30]} e1=Q {[%emt 0:03:45]} 57. Rxe1 {[%emt 0:00:30]} Kxe1 {[%emt 0:00:30]} 58. b6 {[%emt 0:00:00]} axb6 {[%emt 0:06:42]} 59. axb6 {[%emt 0:00:00]} Kd2 {[%emt 0:01:28]} 60. Kc5 {[%emt 0:00:00]} Rh7 {[%emt 0:03:08]} 61. Kc6 {[%emt 0:00:00]} Rxh4 {[%emt 0:00:30]} 62. b7 {[%emt 0:00:00]} Rh6+ {[%emt 0:00:07]} 63. Kc7 {[%emt 0:00:00]} Rh7+ {[%emt 0:00:44]} 64. Kc6 {[%emt 0:00:30]} Rh8 {[%emt 0:00:30]} 65. Kc7 {[%emt 0:00:30]} Rh7+ {[%emt 0:00:30]} 66. Kc6 {[%emt 0:00:30]} Rh8 {[%emt 0:00:30]} 67. Kc7 {[%emt 0:00:30]} Rh7+ {[%emt 0:00:00]} 1/2-1/2

[Event "FIDE World Cadets GU12 2022"]
[Site "Batumi"]
[Date "2022.09.23"]
[Round "7.11"]
[White "Hariharan, Shambavi"]
[Black "Huseynli, Ayan"]
[Result "0-1"]
[ECO "D00"]
[WhiteElo "1465"]
[BlackElo "1572"]
[Annotator "NA RC COMBH"]
[PlyCount "124"]
[EventDate "2022.09.16"]
[EventType "swiss"]
[EventCountry "GEO"]
[SourceTitle "playchess.com"]
[Source "ChessBase"]
[SourceQuality "1"]
[TimeControl "5400+30"]

1. d4 {[%emt 0:01:00]} d5 {[%emt 0:01:00]} 2. Bf4 {[%emt 0:00:30]} e6 {[%emt 0:00:30]} 3. e3 {[%emt 0:00:30]} c5 {[%emt 0:00:30]} 4. c3 {[%emt 0:00:30]} Qb6 {[%emt 0:00:30]} 5. Qb3 {[%emt 0:00:30]} c4 {[%emt 0:00:30]} 6. Qc2 {[%emt 0:00:00]} Nf6 {[%emt 0:00:00]} 7. Nd2 {[%emt 0:00:00]} Bd6 {[%emt 0:02:00]} 8. Bxd6 {[%emt 0:01:30]} Qxd6 {[%emt 0:00:30]} 9. Ngf3 {[%emt 0:00:30]} b5 {[%emt 0:02:30]} 10. e4 {[%emt 0:03:30]} Nfd7 {[%emt 0:06:30]} 11. e5 {[%emt 0:06:30]} Qe7 {[%emt 0:01:30]} 12. b3 {[%emt 0:00:30]} Nb6 {[%emt 0:04:30]} 13. a4 {[%emt 0:04:30]} a6 {[%emt 0:14:30]} 14. Qb2 {[%emt 0:04:30]} Nc6 {[%emt 0:08:30]} 15. axb5 {[%emt 0:09:30]} axb5 {[%emt 0:00:30]} 16. Rxa8 {[%emt 0:00:00]} Nxa8 {[%emt 0:00:30]} 17. Be2 {[%emt 0:00:00]} O-O {[%emt 0:00:30]} 18. O-O {[%emt 0:00:30]} Qb7 {[%emt 0:00:30]} 19. Rb1 {[%emt 0:02:30]} Qc7 {[%emt 0:03:30]} 20. h3 {[%emt 0:03:30]} Bd7 {[%emt 0:01:30]} 21. Ne1 {[%emt 0:02:30]} Rb8 {[%emt 0:00:30]} 22. Qc2 {[%emt 0:00:30]} Nb6 {[%emt 0:00:30]} 23. f4 {[%emt 0:03:30]} Na5 {[%emt 0:03:30]} 24. b4 {[%emt 0:01:30]} Nc6 {[%emt 0:00:00]} 25. Ra1 {[%emt 0:01:30]} Na4 {[%emt 0:02:00]} 26. Nef3 {[%emt 0:00:30]} f6 {[%emt 0:03:30]} 27. g3 {[%emt 0:01:30]} fxe5 {[%emt 0:04:30]} 28. fxe5 {[%emt 0:01:30]} Be8 {[%emt 0:03:30]} 29. Rc1 {[%emt 0:02:30]} Bg6 {[%emt 0:01:30]} 30. Qd1 {[%emt 0:00:30]} Nb2 {[%emt 0:02:30]} 31. Qf1 {[%emt 0:01:30]} Ra8 {[%emt 0:05:30]} 32. g4 {[%emt 0:01:30]} Ra3 {[%emt 0:01:30]} 33. Qe1 {[%emt 0:04:30]} Ne7 {[%emt 0:05:30]} 34. Nf1 {[%emt 0:00:30]} Bd3 {[%emt 0:02:30]} 35. Qd2 {[%emt 0:06:30]} Qa7 {[%emt 0:02:20]} 36. Ng5 {[%emt 0:02:30]} Bxe2 {[%emt 0:03:42]} 37. Qxe2 {[%emt 0:00:30]} Nd3 {[%emt 0:00:44]} 38. Rc2 {[%emt 0:01:30]} Qd7 {[%emt 0:02:14]} 39. Kh2 {[%emt 0:04:30]} h6 {[%emt 0:01:05]} 40. Nf3 {[%emt 0:00:30]} Ng6 {[%emt 0:00:25]} 41. Qe3 {[%emt 0:04:30]} Nxb4 {[%emt 0:01:06]} 42. Rc1 {[%emt 0:03:30]} Nc6 {[%emt 0:00:37]} 43. Qf2 {[%emt 0:02:30]} b4 {[%emt 0:01:20]} 44. cxb4 {[%emt 0:05:37]} Nxb4 {[%emt 0:00:19]} 45. Ne1 {[%emt 0:04:07]} Ra2 {[%emt 0:01:23]} 46. Nd2 {[%emt 0:00:27]} Qf7 {[%emt 0:01:10]} 47. Qxf7+ {[%emt 0:02:38]} Kxf7 {[%emt 0:00:30]} 48. Nef3 {[%emt 0:00:00]} Nd3 {[%emt 0:00:22]} 49. Rc3 {[%emt 0:00:27]} Ngf4 {[%emt 0:00:30]} 50. h4 {[%emt 0:00:30]} Ne2 {[%emt 0:00:30]} 51. Rxd3 {[%emt 0:00:30]} cxd3 {[%emt 0:00:30]} 52. g5 {[%emt 0:02:22]} Nxd4 {[%emt 0:00:00]} 53. Nxd4 {[%emt 0:02:02]} Rxd2+ {[%emt 0:00:00]} 54. Kg3 {[%emt 0:00:30]} Ra2 {[%emt 0:00:00]} 55. Nf3 {[%emt 0:00:02]} d2 {[%emt 0:00:16]} 56. Nxd2 {[%emt 0:00:30]} Rxd2 {[%emt 0:00:30]} 57. gxh6 {[%emt 0:00:30]} gxh6 {[%emt 0:00:30]} 58. Kg4 {[%emt 0:00:00]} Kg6 {[%emt 0:00:00]} 59. h5+ {[%emt 0:00:00]} Kf7 {[%emt 0:00:00]} 60. Kf4 {[%emt 0:00:03]} Rd4+ {[%emt 0:00:00]} 61. Ke3 {[%emt 0:00:00]} Re4+ {[%emt 0:00:00]} 62. Kd3 {[%emt 0:00:30]} Rxe5 {[%emt 0:00:00]} 0-1

[Event "FIDE World Cadets GU12 2022"]
[Site "Batumi"]
[Date "2022.09.23"]
[Round "7.12"]
[White "Sezdbekova, Aizhan"]
[Black "Kiss, Inez"]
[Result "1/2-1/2"]
[ECO "C01"]
[WhiteElo "1447"]
[BlackElo "1544"]
[Annotator "NA RC COMBH"]
[PlyCount "74"]
[EventDate "2022.09.16"]
[EventType "swiss"]
[EventCountry "GEO"]
[SourceTitle "playchess.com"]
[Source "ChessBase"]
[SourceQuality "1"]
[TimeControl "5400+30"]

1. e4 {[%emt 0:01:00]} e6 {[%emt 0:01:00]} 2. d4 {[%emt 0:00:30]} d5 {[%emt 0:00:30]} 3. exd5 {[%emt 0:00:30]} exd5 {[%emt 0:00:30]} 4. Nf3 {[%emt 0:00:30]} Bd6 {[%emt 0:00:30]} 5. c4 {[%emt 0:00:30]} c6 {[%emt 0:00:00]} 6. Nc3 {[%emt 0:00:00]} Nf6 {[%emt 0:00:00]} 7. Be3 {[%emt 0:03:00]} Bg4 {[%emt 0:02:30]} 8. c5 {[%emt 0:06:30]} Bc7 {[%emt 0:03:30]} 9. h3 {[%emt 0:05:30]} Bh5 {[%emt 0:01:30]} 10. Be2 {[%emt 0:03:30]} Nbd7 {[%emt 0:01:30]} 11. O-O {[%emt 0:05:30]} O-O {[%emt 0:00:30]} 12. b4 {[%emt 0:12:30]} b5 {[%emt 0:06:30]} 13. a4 {[%emt 0:04:30]} a6 {[%emt 0:08:30]} 14. Qc2 {[%emt 0:06:30]} Bg6 {[%emt 0:03:30]} 15. Bd3 {[%emt 0:04:30]} Bxd3 {[%emt 0:00:30]} 16. Qxd3 {[%emt 0:01:30]} Re8 {[%emt 0:01:30]} 17. Ra2 {[%emt 0:03:30]} bxa4 {[%emt 0:15:30]} 18. Rxa4 {[%emt 0:03:30]} Ne4 {[%emt 0:06:30]} 19. Rfa1 {[%emt 0:03:30]} Qb8 {[%emt 0:07:30]} 20. Ne2 {[%emt 0:09:30]} Ndf6 {[%emt 0:12:30]} 21. Rxa6 {[%emt 0:02:30]} Rxa6 {[%emt 0:00:30]} 22. Qxa6 {[%emt 0:02:30]} Qxb4 {[%emt 0:01:30]} 23. Qxc6 {[%emt 0:01:53]} Qb2 {[%emt 0:02:30]} 24. Rf1 {[%emt 0:07:12]} Qxe2 {[%emt 0:04:04]} 25. Qxc7 {[%emt 0:00:30]} Nc3 {[%emt 0:04:07]} 26. Ne5 {[%emt 0:01:02]} Rf8 {[%emt 0:03:54]} 27. Qa5 {[%emt 0:03:50]} Nfe4 {[%emt 0:01:08]} 28. c6 {[%emt 0:01:17]} Rb8 {[%emt 0:02:36]} 29. c7 {[%emt 0:02:01]} Qxf1+ {[%emt 0:01:58]} 30. Kh2 {[%emt 0:00:19]} Rc8 {[%emt 0:02:56]} 31. f3 {[%emt 0:01:25]} Qe1 {[%emt 0:02:16]} 32. Qa6 {[%emt 0:01:46]} Qg3+ {[%emt 0:01:55]} 33. Kh1 {[%emt 0:00:50]} Qe1+ {[%emt 0:01:04]} 34. Kh2 {[%emt 0:00:30]} Qg3+ {[%emt 0:00:30]} 35. Kh1 {[%emt 0:00:30]} Qe1+ {[%emt 0:00:30]} 36. Bg1 {[%emt 0:02:26]} Ng3+ {[%emt 0:00:50]} 37. Kh2 {[%emt 0:00:06]} Nf1+ {[%emt 0:00:20]} 1/2-1/2

[Event "FIDE World Cadets GU12 2022"]
[Site "Batumi"]
[Date "2022.09.23"]
[Round "7.13"]
[White "Rathnayake, R M Dulinma Hemalni"]
[Black "Alfano, Emilie"]
[Result "0-1"]
[ECO "C95"]
[WhiteElo "1321"]
[BlackElo "1712"]
[Annotator "NA RC COMBH"]
[PlyCount "100"]
[EventDate "2022.09.16"]
[EventType "swiss"]
[EventCountry "GEO"]
[SourceTitle "playchess.com"]
[Source "ChessBase"]
[SourceQuality "1"]
[TimeControl "5400+30"]

1. e4 {[%emt 0:01:00]} e5 {[%emt 0:01:00]} 2. Nf3 {[%emt 0:00:30]} Nc6 {[%emt 0:00:30]} 3. Bb5 {[%emt 0:00:30]} a6 {[%emt 0:00:30]} 4. Ba4 {[%emt 0:00:30]} Nf6 {[%emt 0:00:30]} 5. O-O {[%emt 0:00:30]} Be7 {[%emt 0:00:30]} 6. Re1 {[%emt 0:00:00]} b5 {[%emt 0:00:00]} 7. Bb3 {[%emt 0:00:00]} d6 {[%emt 0:00:00]} 8. c3 {[%emt 0:00:00]} O-O {[%emt 0:00:30]} 9. h3 {[%emt 0:00:00]} Nb8 {[%emt 0:00:30]} 10. d4 {[%emt 0:00:00]} Nbd7 {[%emt 0:00:00]} 11. Nbd2 {[%emt 0:02:00]} Bb7 {[%emt 0:00:00]} 12. Bc2 {[%emt 0:01:30]} Re8 {[%emt 0:01:30]} 13. Nf1 {[%emt 0:01:30]} Bf8 {[%emt 0:00:30]} 14. Ng3 {[%emt 0:00:30]} g6 {[%emt 0:00:30]} 15. a4 {[%emt 0:04:30]} c5 {[%emt 0:03:30]} 16. d5 {[%emt 0:01:30]} c4 {[%emt 0:00:30]} 17. Be3 {[%emt 0:00:30]} Qc7 {[%emt 0:00:00]} 18. Qd2 {[%emt 0:01:30]} Nc5 {[%emt 0:10:00]} 19. Bg5 {[%emt 0:01:30]} Nfd7 {[%emt 0:05:30]} 20. Bh6 {[%emt 0:03:30]} Nb6 {[%emt 0:03:30]} 21. axb5 {[%emt 0:06:30]} axb5 {[%emt 0:00:00]} 22. h4 {[%emt 0:00:30]} Nba4 {[%emt 0:03:00]} 23. Ra2 {[%emt 0:02:30]} f6 {[%emt 0:05:30]} 24. Nh2 {[%emt 0:01:30]} Nb3 {[%emt 0:13:30]} 25. Bxb3 {[%emt 0:00:30]} cxb3 {[%emt 0:02:30]} 26. Ra3 {[%emt 0:00:30]} Bxh6 {[%emt 0:00:30]} 27. Qxh6 {[%emt 0:00:30]} Nxb2 {[%emt 0:01:30]} 28. Rxb3 {[%emt 0:00:30]} Nd3 {[%emt 0:02:30]} 29. Reb1 {[%emt 0:00:30]} Ba6 {[%emt 0:07:30]} 30. h5 {[%emt 0:04:30]} Qg7 {[%emt 0:10:30]} 31. Qe3 {[%emt 0:01:30]} Nc5 {[%emt 0:01:30]} 32. R3b2 {[%emt 0:01:30]} Na4 {[%emt 0:01:30]} 33. Rc2 {[%emt 0:00:30]} Rac8 {[%emt 0:02:30]} 34. Ng4 {[%emt 0:01:30]} Qe7 {[%emt 0:08:31]} 35. f4 {[%emt 0:03:30]} exf4 {[%emt 0:02:18]} 36. Qxf4 {[%emt 0:00:30]} Rf8 {[%emt 0:00:06]} 37. hxg6 {[%emt 0:00:30]} hxg6 {[%emt 0:00:12]} 38. Nh6+ {[%emt 0:00:30]} Kh8 {[%emt 0:01:11]} 39. Rbc1 {[%emt 0:08:30]} Nc5 {[%emt 0:05:27]} 40. Qf3 {[%emt 0:04:30]} Rce8 {[%emt 0:01:26]} 41. Re2 {[%emt 0:02:30]} b4 {[%emt 0:04:55]} 42. c4 {[%emt 0:01:30]} b3 {[%emt 0:01:08]} 43. Kh2 {[%emt 0:00:30]} Qe5 {[%emt 0:01:25]} 44. Rc3 {[%emt 0:13:30]} b2 {[%emt 0:00:54]} 45. Re1 {[%emt 0:00:30]} Re7 {[%emt 0:02:11]} 46. Ng4 {[%emt 0:03:30]} Qd4 {[%emt 0:00:23]} 47. Rd1 {[%emt 0:02:30]} Rh7+ {[%emt 0:00:07]} 48. Nh5 {[%emt 0:01:30]} Rxh5+ {[%emt 0:00:30]} 49. Kg3 {[%emt 0:00:30]} Nxe4+ {[%emt 0:00:00]} 50. Kf4 {[%emt 0:00:30]} Rf5# {[%emt 0:00:00]} 0-1

[Event "FIDE World Cadets GU12 2022"]
[Site "Batumi"]
[Date "2022.09.23"]
[Round "7.14"]
[White "Zarkym, Ailin"]
[Black "Huseynova, Lala"]
[Result "1-0"]
[ECO "B99"]
[WhiteElo "1376"]
[BlackElo "1702"]
[Annotator "NA RC COMBH"]
[PlyCount "133"]
[EventDate "2022.09.16"]
[EventType "swiss"]
[EventCountry "GEO"]
[SourceTitle "playchess.com"]
[Source "ChessBase"]
[SourceQuality "1"]
[TimeControl "5400+30"]

1. e4 {[%emt 0:05:00]} c5 {[%emt 0:01:00]} 2. Nf3 {[%emt 0:00:30]} d6 {[%emt 0:00:00]} 3. d4 {[%emt 0:00:30]} cxd4 {[%emt 0:00:00]} 4. Nxd4 {[%emt 0:00:30]} Nf6 {[%emt 0:00:30]} 5. Nc3 {[%emt 0:00:30]} a6 {[%emt 0:00:30]} 6. Bg5 {[%emt 0:00:00]} Nbd7 {[%emt 0:00:30]} 7. f4 {[%emt 0:00:00]} e6 {[%emt 0:01:30]} 8. Qf3 {[%emt 0:00:00]} Be7 {[%emt 0:01:30]} 9. g4 {[%emt 0:00:00]} Qc7 {[%emt 0:01:30]} 10. O-O-O {[%emt 0:00:30]} b5 {[%emt 0:11:30]} 11. Bxf6 {[%emt 0:02:30]} Nxf6 {[%emt 0:02:30]} 12. g5 {[%emt 0:00:00]} Nd7 {[%emt 0:00:30]} 13. h4 {[%emt 0:01:00]} b4 {[%emt 0:03:30]} 14. Nce2 {[%emt 0:00:30]} Bb7 {[%emt 0:06:30]} 15. f5 {[%emt 0:01:30]} e5 {[%emt 0:02:30]} 16. f6 {[%emt 0:01:30]} exd4 {[%emt 0:04:30]} 17. fxe7 {[%emt 0:00:00]} Ne5 {[%emt 0:01:30]} 18. Qf4 {[%emt 0:03:00]} d3 {[%emt 0:05:30]} 19. Nd4 {[%emt 0:00:30]} dxc2 {[%emt 0:11:30]} 20. Rd2 {[%emt 0:00:30]} Ng6 {[%emt 0:04:30]} 21. Qe3 {[%emt 0:00:30]} Nxe7 {[%emt 0:04:30]} 22. Rxc2 {[%emt 0:01:30]} Qa5 {[%emt 0:04:30]} 23. Bc4 {[%emt 0:00:30]} Qe5 {[%emt 0:02:30]} 24. Re1 {[%emt 0:00:30]} O-O {[%emt 0:06:30]} 25. h5 {[%emt 0:00:30]} Rae8 {[%emt 0:05:00]} 26. Bb3 {[%emt 0:04:30]} Nd5 {[%emt 0:07:41]} 27. Qd2 {[%emt 0:01:30]} Ne7 {[%emt 0:04:18]} 28. Nf3 {[%emt 0:01:30]} Qg3 {[%emt 0:01:19]} 29. Qd3 {[%emt 0:00:30]} a5 {[%emt 0:02:26]} 30. h6 {[%emt 0:00:30]} Nf5 {[%emt 0:02:28]} 31. hxg7 {[%emt 0:01:30]} Nxg7 {[%emt 0:00:17]} 32. Rce2 {[%emt 0:00:30]} Nh5 {[%emt 0:00:45]} 33. Re3 {[%emt 0:03:30]} Qf4 {[%emt 0:01:01]} 34. Kb1 {[%emt 0:00:30]} Ng3 {[%emt 0:00:28]} 35. Nd2 {[%emt 0:00:30]} Nh5 {[%emt 0:00:44]} 36. Rh1 {[%emt 0:00:30]} Ng7 {[%emt 0:01:04]} 37. Reh3 {[%emt 0:00:30]} Bxe4 {[%emt 0:00:42]} 38. Nxe4 {[%emt 0:00:30]} Qxe4 {[%emt 0:00:29]} 39. Qxe4 {[%emt 0:00:30]} Rxe4 {[%emt 0:00:30]} 40. Bc2 {[%emt 0:00:30]} Rfe8 {[%emt 0:00:22]} 41. Bxe4 {[%emt 0:00:30]} Rxe4 {[%emt 0:00:30]} 42. Rxh7 {[%emt 0:00:00]} Ne6 {[%emt 0:00:00]} 43. R7h6 {[%emt 0:00:00]} Rg4 {[%emt 0:00:40]} 44. Rd1 {[%emt 0:00:30]} Rxg5 {[%emt 0:00:38]} 45. Rxd6 {[%emt 0:00:30]} Kg7 {[%emt 0:00:30]} 46. Rh1 {[%emt 0:00:00]} Nf8 {[%emt 0:00:37]} 47. Rf1 {[%emt 0:00:00]} Re5 {[%emt 0:01:15]} 48. Rdf6 {[%emt 0:00:30]} Re7 {[%emt 0:00:00]} 49. R6f5 {[%emt 0:00:30]} Ra7 {[%emt 0:00:00]} 50. Kc2 {[%emt 0:00:30]} Ne6 {[%emt 0:00:27]} 51. Rg1+ {[%emt 0:00:30]} Kf8 {[%emt 0:00:00]} 52. Rd5 {[%emt 0:00:30]} Rc7+ {[%emt 0:00:30]} 53. Kb3 {[%emt 0:00:30]} Nc5+ {[%emt 0:01:01]} 54. Kc4 {[%emt 0:00:30]} Ne6+ {[%emt 0:01:14]} 55. Kb5 {[%emt 0:00:00]} Rc2 {[%emt 0:00:07]} 56. Kxa5 {[%emt 0:01:00]} Rxb2 {[%emt 0:00:07]} 57. Rb5 {[%emt 0:00:30]} Nd4 {[%emt 0:00:30]} 58. Rb8+ {[%emt 0:00:30]} Ke7 {[%emt 0:00:30]} 59. Rb7+ {[%emt 0:00:30]} Kf8 {[%emt 0:00:35]} 60. Rb8+ {[%emt 0:00:30]} Ke7 {[%emt 0:00:30]} 61. Re1+ {[%emt 0:00:30]} Kf6 {[%emt 0:01:00]} 62. Rb6+ {[%emt 0:00:30]} Kg7 {[%emt 0:00:24]} 63. Re4 {[%emt 0:00:30]} Nc2 {[%emt 0:00:36]} 64. Ka4 {[%emt 0:00:30]} Kf8 {[%emt 0:00:43]} 65. Rb7 {[%emt 0:01:30]} Rb1 {[%emt 0:00:39]} 66. Rc4 {[%emt 0:02:30]} Rb2 {[%emt 0:00:46]} 67. Rcc7 {[%emt 0:02:30]} 1-0

[Event "FIDE World Cadets GU12 2022"]
[Site "Batumi"]
[Date "2022.09.23"]
[Round "7.15"]
[White "Beber, Anja"]
[Black "Semenova, Vasilisa"]
[Result "1-0"]
[ECO "D36"]
[WhiteElo "1674"]
[BlackElo "1332"]
[Annotator "NA RC COMBH"]
[PlyCount "85"]
[EventDate "2022.09.16"]
[EventType "swiss"]
[EventCountry "GEO"]
[SourceTitle "playchess.com"]
[Source "ChessBase"]
[SourceQuality "1"]
[TimeControl "5400+30"]

1. d4 {[%emt 0:01:00]} d5 {[%emt 0:01:00]} 2. c4 {[%emt 0:00:30]} e6 {[%emt 0:00:30]} 3. Nc3 {[%emt 0:00:30]} Nf6 {[%emt 0:00:30]} 4. cxd5 {[%emt 0:00:30]} exd5 {[%emt 0:00:30]} 5. Bg5 {[%emt 0:00:30]} Be7 {[%emt 0:00:30]} 6. Nf3 {[%emt 0:00:30]} c6 {[%emt 0:00:30]} 7. e3 {[%emt 0:00:30]} O-O {[%emt 0:00:30]} 8. Qc2 {[%emt 0:00:30]} Re8 {[%emt 0:00:30]} 9. Bd3 {[%emt 0:00:30]} Nbd7 {[%emt 0:00:30]} 10. O-O-O {[%emt 0:00:30]} Qa5 {[%emt 0:00:30]} 11. h3 {[%emt 0:00:30]} Bb4 {[%emt 0:00:30]} 12. Kb1 {[%emt 0:00:30]} Bxc3 {[%emt 0:00:30]} 13. bxc3 {[%emt 0:00:30]} b5 {[%emt 0:00:30]} 14. Bf4 {[%emt 0:00:30]} Ne4 {[%emt 0:00:30]} 15. Rc1 {[%emt 0:00:30]} Nb6 {[%emt 0:00:30]} 16. Ne5 {[%emt 0:00:30]} Nc4 {[%emt 0:00:30]} 17. Ka1 {[%emt 0:36:30]} Nxe5 {[%emt 0:41:30]} 18. Bxe5 {[%emt 0:00:30]} h6 {[%emt 0:17:30]} 19. f3 {[%emt 0:04:30]} Ng5 {[%emt 0:00:30]} 20. h4 {[%emt 0:00:30]} Ne6 {[%emt 0:00:00]} 21. g4 {[%emt 0:00:30]} c5 {[%emt 0:00:00]} 22. g5 {[%emt 0:01:30]} h5 {[%emt 0:00:30]} 23. f4 {[%emt 0:00:30]} c4 {[%emt 0:03:30]} 24. Be2 {[%emt 0:00:30]} g6 {[%emt 0:00:30]} 25. f5 {[%emt 0:01:30]} Nf8 {[%emt 0:00:30]} 26. fxg6 {[%emt 0:00:30]} fxg6 {[%emt 0:00:30]} 27. Rhf1 {[%emt 0:00:00]} Bf5 {[%emt 0:09:30]} 28. Rxf5 {[%emt 0:01:00]} gxf5 {[%emt 0:06:20]} 29. Qxf5 {[%emt 0:00:30]} Rxe5 {[%emt 0:09:42]} 30. Qxe5 {[%emt 0:01:30]} Rd8 {[%emt 0:01:35]} 31. Bxh5 {[%emt 0:00:00]} Qa3 {[%emt 0:00:00]} 32. Kb1 {[%emt 0:01:00]} Qd6 {[%emt 0:00:37]} 33. Rf1 {[%emt 0:00:30]} a5 {[%emt 0:00:00]} 34. Qxd6 {[%emt 0:00:30]} Rxd6 {[%emt 0:00:27]} 35. Bf7+ {[%emt 0:00:30]} Kg7 {[%emt 0:00:30]} 36. h5 {[%emt 0:01:30]} b4 {[%emt 0:00:34]} 37. cxb4 {[%emt 0:00:30]} axb4 {[%emt 0:00:30]} 38. Rf5 {[%emt 0:00:00]} Ne6 {[%emt 0:00:34]} 39. h6+ {[%emt 0:00:00]} Kh7 {[%emt 0:02:14]} 40. Rf6 {[%emt 0:01:30]} Rc6 {[%emt 0:00:29]} 41. Rxe6 {[%emt 0:00:30]} Rc7 {[%emt 0:00:30]} 42. Bg6+ {[%emt 0:00:30]} Kg8 {[%emt 0:00:00]} 43. Re8# {[%emt 0:00:00]} 1-0

[Event "FIDE World Cadets GU12 2022"]
[Site "Batumi"]
[Date "2022.09.23"]
[Round "7.17"]
[White "Gan, Emily Cathay"]
[Black "Sordia, Marta"]
[Result "1/2-1/2"]
[ECO "A29"]
[WhiteElo "1550"]
[BlackElo "1363"]
[Annotator "NA RC COMBH"]
[PlyCount "84"]
[EventDate "2022.09.16"]
[EventType "swiss"]
[EventCountry "GEO"]
[SourceTitle "playchess.com"]
[Source "ChessBase"]
[SourceQuality "1"]
[TimeControl "5400+30"]

1. c4 {[%emt 0:01:00]} e5 {[%emt 0:01:00]} 2. Nc3 {[%emt 0:00:30]} Nf6 {[%emt 0:00:30]} 3. d3 {[%emt 0:00:30]} d5 {[%emt 0:00:30]} 4. cxd5 {[%emt 0:00:30]} Nxd5 {[%emt 0:00:00]} 5. Nf3 {[%emt 0:00:30]} Nc6 {[%emt 0:00:00]} 6. g3 {[%emt 0:00:30]} Be7 {[%emt 0:00:00]} 7. Bg2 {[%emt 0:00:30]} Nb6 {[%emt 0:00:00]} 8. O-O {[%emt 0:00:30]} O-O {[%emt 0:00:30]} 9. e4 {[%emt 0:12:30]} Bg4 {[%emt 0:06:30]} 10. h3 {[%emt 0:00:30]} Bxf3 {[%emt 0:00:30]} 11. Bxf3 {[%emt 0:04:30]} Nb4 {[%emt 0:01:30]} 12. Be2 {[%emt 0:00:30]} Qd7 {[%emt 0:00:30]} 13. a3 {[%emt 0:00:30]} Nc6 {[%emt 0:02:30]} 14. Bg4 {[%emt 0:00:30]} Qd8 {[%emt 0:02:30]} 15. Ne2 {[%emt 0:12:30]} Nd4 {[%emt 0:04:30]} 16. Nxd4 {[%emt 0:02:30]} Qxd4 {[%emt 0:00:30]} 17. Qc2 {[%emt 0:00:30]} Qc5 {[%emt 0:02:30]} 18. Qe2 {[%emt 0:02:30]} Rad8 {[%emt 0:03:30]} 19. Be3 {[%emt 0:03:30]} Qb5 {[%emt 0:00:00]} 20. Qc2 {[%emt 0:12:30]} c5 {[%emt 0:11:00]} 21. Rfd1 {[%emt 0:03:30]} Nd7 {[%emt 0:06:30]} 22. f4 {[%emt 0:03:30]} exf4 {[%emt 0:03:30]} 23. gxf4 {[%emt 0:01:30]} Nf6 {[%emt 0:02:30]} 24. Bf3 {[%emt 0:01:30]} Rfe8 {[%emt 0:02:30]} 25. Rd2 {[%emt 0:04:30]} b6 {[%emt 0:05:30]} 26. Kh1 {[%emt 0:00:30]} Bf8 {[%emt 0:03:30]} 27. Rg1 {[%emt 0:01:30]} Nd5 {[%emt 0:04:30]} 28. Re2 {[%emt 0:07:30]} Nxe3 {[%emt 0:00:30]} 29. Rxe3 {[%emt 0:00:30]} Rd4 {[%emt 0:05:30]} 30. Be2 {[%emt 0:00:30]} Qc6 {[%emt 0:03:30]} 31. Reg3 {[%emt 0:01:30]} f6 {[%emt 0:05:30]} 32. Bh5 {[%emt 0:02:30]} Red8 {[%emt 0:00:30]} 33. Qb3+ {[%emt 0:00:44]} c4 {[%emt 0:01:30]} 34. dxc4 {[%emt 0:02:19]} Qxc4 {[%emt 0:02:30]} 35. Qxc4+ {[%emt 0:03:48]} Rxc4 {[%emt 0:00:30]} 36. Re1 {[%emt 0:00:30]} Rd2 {[%emt 0:01:55]} 37. Rg2 {[%emt 0:01:09]} Rcc2 {[%emt 0:02:22]} 38. Ree2 {[%emt 0:00:56]} Rxe2 {[%emt 0:00:26]} 39. Rxe2 {[%emt 0:00:24]} Rxe2 {[%emt 0:00:30]} 40. Bxe2 {[%emt 0:00:00]} Bd6 {[%emt 0:00:29]} 41. f5 {[%emt 0:00:14]} a5 {[%emt 0:00:53]} 42. a4 {[%emt 0:00:52]} Kf7 {[%emt 0:01:06]} 1/2-1/2